fUSD/lending_fUSD_20251211
["ID","MTS","AMOUNT","RATE_DAILY","PERIOD"]
[398237142,1765444241553,-150.0,0.00037707,7]
[398237143,1765444241562,-500.0,0.00037712,60]
[398237144,1765444241571,-1703.8843,0.00037713,2]
[398237145,1765444241581,-150.0,0.00037798,7]
[398237146,1765444241590,-150.0,0.00037798,7]
[398237147,1765444241600,-4283.12858507,0.00037813,2]
[398237148,1765444241609,-150.0,0.00037814,2]
[398237149,1765444241619,-150.0,0.00037912,7]
[398237150,1765444241628,-150.0,0.00037912,7]
[398237151,1765444241638,-860.81,0.00037926,5]
[398237152,1765444241647,-150.0,0.00038005,7]
[398237153,1765444241656,-152.0,0.00038117,3]
[398237154,1765444241666,-885.35,0.00038124,5]
[398237155,1765444241675,-346.77,0.00038134,2]
[398237156,1765444241684,-1813.07710402,0.00038235,4]
[398237157,1765444241693,-150.0,0.00038254,7]
[398237158,1765444241702,-150.0,0.00038254,7]
[398237159,1765444241712,-500.0,0.00038254,60]
[398237160,1765444241722,-1149.96,0.00038254,60]
[398237161,1765444241731,-882.83,0.00038356,5]
[398237162,1765444241741,-151.48,0.00038356,2]
[398237163,1765444241751,-165.458579,0.00038356,60]
[398237164,1765444241761,-150.0,0.00038378,7]
[398237165,1765444241770,-150.0,0.00038425,7]
[398237166,1765444241779,-150.0,0.00038425,7]
[398237167,1765444241789,-1000.0,0.000385,7]
[398237168,1765444241799,-150.0,0.00038527,7]
[398237169,1765444241809,-150.0,0.00038709,7]
[398237170,1765444241819,-150.0,0.00038709,7]
[398237171,1765444241828,-150.0,0.00038751,7]
[398237172,1765444241837,-12727.99165739,0.00038796,2]
[398237173,1765444241847,-1813.07710402,0.0003887,4]
[398237174,1765444241856,-1813.07710402,0.00038882,4]
[398237175,1765444241866,-21147.64198913,0.00038892,2]
[398237176,1765444241875,-8930.31,0.00038904,2]
[398237177,1765444241884,-1813.07710402,0.00038927,4]
[398237178,1765444241893,-150.0,0.00038937,7]
[398237179,1765444241902,-150.0,0.00038937,7]
[398237180,1765444241911,-150.0,0.00038937,7]
[398237181,1765444241920,-150.0,0.00038937,7]
[398237182,1765444241930,-150.0,0.00038937,7]
[398237183,1765444241940,-150.0,0.00039123,7]
[398237184,1765444241949,-549.29,0.00039162,120]
[398237185,1765444241959,-150.0,0.00039165,7]
[398237186,1765444241968,-150.0,0.00039165,7]
[398237187,1765444241977,-480.43,0.00039178,2]
[398237188,1765444241986,-480.43,0.00039178,2]
[398237189,1765444241995,-480.43,0.00039178,2]
[398237190,1765444242005,-480.43,0.00039178,2]
[398237191,1765444242014,-480.43,0.00039178,2]
[398237192,1765444242027,-150.0,0.00039347,7]
[398237193,1765444242036,-150.0,0.00039449,7]
[398237194,1765444242046,-150.0,0.00039449,7]
[398237195,1765444242056,-178.88,0.00039452,2]
[398237196,1765444242066,-150.21,0.00039452,2]
[398237197,1765444242075,-170.32,0.00039452,2]
[398237198,1765444242085,-150.0,0.00039452,2]
[398237199,1765444242095,-170.32,0.00039452,2]
[398237200,1765444242104,-178.13,0.00039452,2]
[398237201,1765444242113,-178.13,0.00039452,2]
[398237202,1765444242122,-170.32,0.00039452,2]
[398237203,1765444242131,-178.13,0.00039452,2]
[398237204,1765444242141,-170.32,0.00039452,2]
[398237205,1765444242150,-170.32,0.00039452,2]
[398237206,1765444242159,-178.13,0.00039452,2]
[398237207,1765444242169,-150.0,0.00039496,7]
[398237208,1765444242178,-346.77,0.00039504,2]
[398237209,1765444242187,-150.0,0.0003962,7]
[398237210,1765444242197,-150.0,0.0003962,7]
[398237211,1765444242207,-4796.07034412,0.0003969,2]
[398237212,1765444242216,-1813.07710402,0.0003969,4]
[398237213,1765444242226,-1007.0,0.000397,7]
[398237215,1765444242235,-500.0,0.00039726,120]
[398237216,1765444242245,-150.0,0.00039868,7]
[398237218,1765444242255,-150.0,0.00039962,7]
[398237220,1765444242264,-150.0,0.00039962,7]
[398237221,1765444242273,-1380.98566234,0.00039979,2]
[398237222,1765444242282,-1813.07710402,0.0003999,4]
[398237223,1765444242292,-500.0,0.00039999,31]
[398237225,1765444242302,-228.90605341,0.00039999,31]
[398237226,1765444242311,-437.92177077,0.00039999,31]
[398237228,1765444242321,-20281.63,0.0004,60]
[398237229,1765444242330,-150.0,0.0004,60]
[398237230,1765444242339,-167.0,0.0004,2]
[398237231,1765444242349,-4103.0,0.0004,100]
[398237232,1765444242358,-150.0,0.0004,2]
[398237233,1765444242368,-250.48357596,0.0004005,7]
[398237234,1765444242377,-150.0,0.00040075,7]
[398237235,1765444242386,-150.0,0.00040075,7]
[398237236,1765444242395,-169.87,0.000401,30]
[398237237,1765444242405,-1380.98566234,0.00040129,2]
[398237238,1765444242414,-960.66,0.00040137,2]
[398237239,1765444242424,-480.43,0.00040137,2]
[398237240,1765444242433,-480.43,0.00040137,2]
[398237241,1765444242445,-480.43,0.00040137,2]
[398237242,1765444242454,-478.93,0.00040137,2]
[398237244,1765444242464,-703.56,0.00040137,2]
[398237245,1765444242473,-703.56,0.00040137,2]
[398237247,1765444242482,-703.56,0.00040137,2]
[398237248,1765444242492,-480.43,0.00040137,2]
[398237249,1765444242501,-480.43,0.00040137,2]
[398237250,1765444242511,-703.56,0.00040137,2]
[398237251,1765444242520,-480.43,0.00040137,2]
[398237252,1765444242530,-703.56,0.00040137,2]
[398237253,1765444242539,-170.96,0.00040153,2]
[398237254,1765444242549,-150.0,0.00040167,7]
[398237255,1765444242559,-150.0,0.00040241,7]
[398237256,1765444242568,-1216.3,0.00040259,120]
[398237257,1765444242578,-1216.3,0.00040259,120]
[398237258,1765444242587,-1216.3,0.00040259,120]
[398237259,1765444242597,-1813.07710402,0.00040264,4]
[398237260,1765444242606,-150.0,0.00040274,2]
[398237261,1765444242615,-552.86,0.00040274,2]
[398237262,1765444242625,-150.0,0.00040274,2]
[398237263,1765444242634,-463.81,0.00040274,2]
[398237264,1765444242644,-150.0,0.00040274,2]
[398237265,1765444242653,-150.0,0.00040274,2]
[398237266,1765444242664,-150.08,0.00040274,2]
[398237267,1765444242673,-150.0,0.00040274,2]
[398237268,1765444242683,-552.86,0.00040274,2]
[398237269,1765444242692,-150.0,0.00040274,2]
[398237270,1765444242702,-150.0,0.00040274,2]
[398237271,1765444242712,-150.0,0.00040274,2]
[398237272,1765444242721,-463.81,0.00040274,2]
[398237273,1765444242730,-178.13,0.00040274,2]
[398237274,1765444242740,-552.46,0.00040274,2]
[398237275,1765444242749,-150.0,0.00040274,2]
[398237276,1765444242758,-150.0,0.00040274,2]
[398237277,1765444242768,-170.32,0.00040274,2]
[398237278,1765444242777,-150.0,0.00040274,2]
[398237279,1765444242787,-150.0,0.00040274,2]
[398237280,1765444242797,-463.81,0.00040274,2]
[398237281,1765444242806,-150.0,0.00040274,2]
[398237282,1765444242815,-150.0,0.00040274,2]
[398237283,1765444242825,-178.13,0.00040274,2]
[398237284,1765444242834,-170.32,0.00040274,2]
[398237285,1765444242843,-463.81,0.00040274,2]
[398237286,1765444242853,-150.0,0.00040274,2]
[398237287,1765444242862,-150.0,0.00040274,2]
[398237288,1765444242871,-150.0,0.00040274,2]
[398237289,1765444242881,-178.13,0.00040274,2]
[398237290,1765444242890,-150.0,0.00040274,2]
[398237291,1765444242900,-170.32,0.00040274,2]
[398237292,1765444242909,-150.0,0.00040274,2]
[398237293,1765444242918,-463.56,0.00040274,2]
[398237294,1765444242927,-151.80963422,0.00040274,2]
[398237295,1765444242937,-1603.0,0.00040432,2]
[398237296,1765444242946,-3443.0,0.00040432,2]
[398237297,1765444242955,-611.0,0.00040432,2]
[398237298,1765444242964,-1260.0,0.00040432,2]
[398237299,1765444242974,-684.0,0.00040432,2]
[398237300,1765444242983,-253.0,0.00040432,2]
[398237301,1765444242992,-4764.0,0.00040432,2]
[398237302,1765444243001,-150.0,0.00040474,7]
[398237303,1765444243010,-150.0,0.00040474,7]
[398237304,1765444243022,-150.0,0.00040531,7]
[398237305,1765444243031,-150.0,0.00040531,7]
[398237306,1765444243040,-1380.98566234,0.00040544,2]
[398237307,1765444243049,-300.38,0.00040548,2]
[398237308,1765444243059,-1813.07710402,0.00040565,4]
[398237309,1765444243068,-200.0,0.00040573,20]
[398237310,1765444243077,-200.0,0.00040582,20]
[398237312,1765444243086,-200.0,0.0004059,20]
[398237314,1765444243098,-7000.0,0.0004059,5]
[398237316,1765444243107,-150.0,0.00040614,7]
[398237318,1765444243117,-1380.98566234,0.00040668,2]
[398237319,1765444243126,-840.81659341,0.0004068,2]
[398237320,1765444243135,-150.36185267,0.00040683,60]
[398237321,1765444243144,-10878.4626241,0.00040711,4]
[398237322,1765444243153,-299.27048652,0.00040711,7]
[398237323,1765444243163,-5000.0,0.00040721,120]
[398237324,1765444243332,-255555.0,0.00040721,120]
[398237325,1765444243342,-7000.0,0.0004078,6]
[398237326,1765444243352,-219.76448304,0.00040794,2]
[398237327,1765444243362,-151.0,0.00040818,14]
[398237328,1765444243372,-500.0,0.0004082,60]
[398237329,1765444243381,-500.0,0.0004082,60]
[398237330,1765444243391,-500.0,0.0004082,60]
[398237331,1765444243400,-1149.96,0.0004082,60]
[398237332,1765444243410,-1149.96,0.0004082,60]
[398237333,1765444243419,-1149.96,0.0004082,60]
[398237334,1765444243428,-1149.96,0.0004082,60]
[398237335,1765444243438,-500.0,0.00040821,60]
[398237336,1765444243448,-500.0,0.00040821,60]
[398237337,1765444243458,-200.0,0.00040821,5]
[398237338,1765444243467,-500.0,0.00040821,60]
[398237339,1765444243476,-500.0,0.00040821,60]
[398237340,1765444243485,-500.0,0.00040821,60]
[398237341,1765444243494,-361.27128128,0.00040821,60]
[398237342,1765444243503,-500.0,0.00040821,120]
[398237343,1765444243513,-150.0,0.00040821,60]
[398237344,1765444243522,-150.0,0.00040821,60]
[398237345,1765444243531,-500.0,0.00040821,60]
[398237346,1765444243540,-500.0,0.00040821,60]
[398237347,1765444243550,-500.0,0.00040821,60]
[398237348,1765444243560,-504.84311354,0.00040821,60]
[398237349,1765444243570,-501.01954221,0.00040821,60]
[398237350,1765444243580,-500.0,0.00040821,60]
[398237351,1765444243589,-500.0,0.00040821,60]
[398237352,1765444243599,-500.0,0.00040821,60]
[398237353,1765444243608,-500.0,0.00040821,60]
[398237354,1765444243617,-500.0,0.00040821,60]
[398237355,1765444243627,-500.0,0.00040821,60]
[398237356,1765444243636,-500.0,0.00040821,60]
[398237357,1765444243646,-486.38165113,0.00040821,60]
[398237358,1765444243656,-500.0,0.00040821,60]
[398237359,1765444243665,-500.0,0.00040821,60]
[398237360,1765444243675,-500.0,0.00040821,60]
[398237361,1765444243684,-500.0,0.00040821,60]
[398237362,1765444243694,-500.0,0.00040821,60]
[398237363,1765444243703,-500.0,0.00040821,60]
[398237364,1765444243713,-500.0,0.00040821,60]
[398237365,1765444243723,-500.0,0.00040821,60]
[398237366,1765444243732,-500.0,0.00040821,60]
[398237367,1765444243741,-500.0,0.00040821,60]
[398237368,1765444243751,-500.0,0.00040821,60]
[398237369,1765444243760,-500.0,0.00040821,60]
[398237370,1765444243769,-500.0,0.00040821,60]
[398237371,1765444243779,-500.0,0.00040821,60]
[398237372,1765444243788,-500.0,0.00040821,60]
[398237373,1765444243798,-500.0,0.00040821,60]
[398237374,1765444243808,-500.0,0.00040821,60]
[398237375,1765444243817,-500.0,0.00040821,60]
[398237376,1765444243827,-500.0,0.00040821,60]
[398237377,1765444243837,-500.0,0.00040821,60]
[398237378,1765444243846,-500.0,0.00040821,60]
[398237379,1765444243856,-500.0,0.00040821,15]
[398237380,1765444243865,-500.0,0.00040821,60]
[398237381,1765444243875,-500.0,0.00040821,60]
[398237382,1765444243884,-500.0,0.00040821,60]
[398237383,1765444243893,-500.0,0.00040821,60]
[398237384,1765444243903,-500.65232311,0.00040821,60]
[398237385,1765444243912,-503.33795079,0.00040821,60]
[398237386,1765444243921,-500.0,0.00040821,60]
[398237387,1765444243931,-449.52757269,0.00040821,60]
[398237388,1765444243942,-500.0,0.00040821,60]
[398237389,1765444243955,-500.0,0.00040821,60]
[398237390,1765444243964,-500.0,0.00040821,60]
[398237391,1765444243973,-500.0,0.00040821,60]
[398237392,1765444243983,-500.0,0.00040821,60]
[398237393,1765444243992,-502.18292692,0.00040821,60]
[398237394,1765444244001,-500.30762663,0.00040821,60]
[398237395,1765444244010,-500.0,0.00040821,7]
[398237396,1765444244020,-500.0,0.00040821,7]
[398237397,1765444244031,-500.0,0.00040821,7]
[398237398,1765444244040,-500.0,0.00040821,60]
[398237399,1765444244049,-500.0,0.00040821,60]
[398237400,1765444244059,-500.0,0.00040821,60]
[398237401,1765444244071,-500.0,0.00040821,60]
[398237402,1765444244081,-500.0,0.00040821,60]
[398237403,1765444244091,-500.0,0.00040821,60]
[398237404,1765444244102,-500.0,0.00040821,60]
[398237405,1765444244111,-500.0,0.00040821,60]
[398237406,1765444244120,-500.0,0.00040821,60]
[398237407,1765444244132,-500.0,0.00040821,60]
[398237408,1765444244143,-555.50413881,0.00040821,60]
[398237409,1765444244153,-500.0,0.00040821,60]
[398237410,1765444244162,-500.0,0.00040821,60]
[398237411,1765444244172,-500.0,0.00040821,60]
[398237412,1765444244182,-500.0,0.00040821,60]
[398237413,1765444244191,-500.0,0.00040821,60]
[398237414,1765444244200,-500.0,0.00040821,60]
[398237415,1765444244210,-500.51236151,0.00040821,60]
[398237416,1765444244219,-500.0,0.00040821,60]
[398237417,1765444244229,-501.73016306,0.00040821,60]
[398237418,1765444244238,-500.0,0.00040821,60]
[398237419,1765444244248,-500.0,0.00040821,60]
[398237420,1765444244258,-500.0,0.00040821,60]
[398237421,1765444244267,-500.51997861,0.00040821,60]
[398237422,1765444244276,-500.0,0.00040821,60]
[398237423,1765444244286,-500.0,0.00040821,60]
[398237424,1765444244296,-500.0,0.00040821,60]
[398237425,1765444244305,-500.0,0.00040821,60]
[398237426,1765444244315,-500.0,0.00040821,60]
[398237427,1765444244325,-500.0,0.00040821,2]
[398237428,1765444244334,-500.0,0.00040821,60]
[398237429,1765444244343,-500.0,0.00040821,60]
[398237430,1765444244352,-501.49418216,0.00040821,60]
[398237431,1765444244362,-500.0,0.00040821,60]
[398237432,1765444244371,-500.0,0.00040821,60]
[398237433,1765444244382,-500.0,0.00040821,60]
[398237434,1765444244392,-500.0,0.00040821,60]
[398237435,1765444244402,-500.0,0.00040821,60]
[398237436,1765444244411,-502.36334419,0.00040821,60]
[398237437,1765444244421,-500.0,0.00040821,60]
[398237438,1765444244430,-500.0,0.00040821,60]
[398237439,1765444244439,-500.0,0.00040821,60]
[398237440,1765444244448,-500.0,0.00040821,60]
[398237441,1765444244458,-500.0,0.00040821,60]
[398237442,1765444244468,-500.0,0.00040821,60]
[398237443,1765444244478,-500.0,0.00040821,60]
[398237444,1765444244487,-500.0,0.00040821,60]
[398237445,1765444244497,-500.0,0.00040821,60]
[398237446,1765444244506,-500.0,0.00040821,60]
[398237447,1765444244515,-500.0,0.00040821,60]
[398237448,1765444244525,-500.0,0.00040821,60]
[398237449,1765444244533,-594.01625544,0.00040821,120]
[398237450,1765444244543,-315.35623884,0.00040821,60]
[398237451,1765444244552,-500.0,0.00040821,60]
[398237452,1765444244562,-500.0,0.00040821,60]
[398237453,1765444244571,-501.04871668,0.00040821,60]
[398237454,1765444244581,-500.0,0.00040821,60]
[398237455,1765444244590,-500.0,0.00040821,60]
[398237456,1765444244601,-500.0,0.00040821,60]
[398237457,1765444244610,-500.0,0.00040821,60]
[398237458,1765444244619,-500.0,0.00040821,60]
[398237459,1765444244628,-500.0,0.00040821,60]
[398237460,1765444244638,-501.60542115,0.00040821,60]
[398237461,1765444244647,-500.0,0.00040821,60]
[398237462,1765444244656,-509.47450532,0.00040821,60]
[398237463,1765444244666,-500.0,0.00040821,60]
[398237464,1765444244675,-500.0,0.00040821,60]
[398237465,1765444244685,-500.0,0.00040821,60]
[398237466,1765444244695,-500.0,0.00040821,60]
[398237467,1765444244704,-500.0,0.00040821,60]
[398237468,1765444244714,-500.0,0.00040821,60]
[398237469,1765444244724,-500.0,0.00040821,60]
[398237470,1765444244733,-500.0,0.00040821,60]
[398237471,1765444244746,-500.0,0.00040821,60]
[398237472,1765444244756,-500.0,0.00040821,11]
[398237473,1765444244765,-500.0,0.00040821,60]
[398237474,1765444244775,-500.0,0.00040821,60]
[398237475,1765444244786,-500.0,0.00040821,60]
[398237476,1765444244795,-500.0,0.00040821,60]
[398237477,1765444244804,-502.42105948,0.00040821,60]
[398237478,1765444244814,-500.0,0.00040821,60]
[398237479,1765444244823,-500.0,0.00040821,60]
[398237480,1765444244833,-500.0,0.00040821,60]
[398237481,1765444244843,-500.0,0.00040821,60]
[398237482,1765444244853,-500.0,0.00040821,60]
[398237483,1765444244862,-500.0,0.00040821,60]
[398237484,1765444244872,-500.0,0.00040821,60]
[398237485,1765444244882,-500.0,0.00040821,60]
[398237486,1765444244891,-500.0,0.00040821,60]
[398237487,1765444244900,-500.0,0.00040821,60]
[398237488,1765444244910,-500.0,0.00040821,60]
[398237489,1765444244920,-500.0,0.00040821,60]
[398237490,1765444244929,-500.0,0.00040821,60]
[398237491,1765444244938,-500.0,0.00040821,60]
[398237492,1765444244947,-500.0,0.00040821,60]
[398237493,1765444244956,-500.0,0.00040821,60]
[398237494,1765444244966,-544.44089405,0.00040821,60]
[398237495,1765444244978,-500.0,0.00040821,60]
[398237496,1765444244988,-500.0,0.00040821,60]
[398237497,1765444244997,-500.0,0.00040821,60]
[398237498,1765444245007,-500.0,0.00040821,60]
[398237499,1765444245016,-500.0,0.00040821,60]
[398237500,1765444245029,-500.0,0.00040821,60]
[398237501,1765444245038,-500.0,0.00040821,60]
[398237502,1765444245047,-500.0,0.00040821,60]
[398237503,1765444245056,-500.0,0.00040821,60]
[398237504,1765444245067,-505.26442086,0.00040821,60]
[398237505,1765444245076,-500.0,0.00040821,60]
[398237506,1765444245085,-500.0,0.00040821,60]
[398237507,1765444245096,-500.0,0.00040821,60]
[398237508,1765444245106,-500.0,0.00040821,60]
[398237509,1765444245115,-500.0,0.00040821,60]
[398237510,1765444245125,-500.0,0.00040821,60]
[398237511,1765444245134,-500.0,0.00040821,60]
[398237512,1765444245143,-500.0,0.00040821,60]
[398237513,1765444245152,-301.69134657,0.00040821,60]
[398237514,1765444245161,-503.18326896,0.00040821,60]
[398237515,1765444245170,-500.0,0.00040821,60]
[398237516,1765444245180,-500.0,0.00040821,60]
[398237517,1765444245190,-500.0,0.00040821,60]
[398237518,1765444245199,-500.0,0.00040821,60]
[398237519,1765444245208,-500.0,0.00040821,60]
[398237520,1765444245218,-500.0,0.00040821,60]
[398237521,1765444245228,-500.0,0.00040821,60]
[398237522,1765444245237,-500.0,0.00040821,60]
[398237523,1765444245246,-500.0,0.00040821,60]
[398237525,1765444245256,-500.0,0.00040821,60]
[398237527,1765444245265,-500.0,0.00040821,60]
[398237529,1765444245275,-255.56579853,0.00040821,60]
[398237531,1765444245284,-500.0,0.00040821,60]
[398237532,1765444245294,-500.0,0.00040821,60]
[398237533,1765444245304,-500.0,0.00040821,60]
[398237534,1765444245314,-500.0,0.00040821,60]
[398237535,1765444245323,-500.0,0.00040821,60]
[398237536,1765444245332,-536.02620099,0.00040821,60]
[398237537,1765444245341,-500.0,0.00040821,60]
[398237538,1765444245351,-500.0,0.00040821,60]
[398237539,1765444245359,-500.0,0.00040821,60]
[398237540,1765444245369,-500.0,0.00040821,60]
[398237541,1765444245379,-500.0,0.00040821,60]
[398237542,1765444245388,-500.0,0.00040821,60]
[398237543,1765444245397,-500.0,0.00040821,60]
[398237544,1765444245409,-500.0,0.00040821,60]
[398237545,1765444245418,-500.0,0.00040821,60]
[398237546,1765444245427,-507.03099784,0.00040821,60]
[398237547,1765444245436,-500.0,0.00040821,60]
[398237548,1765444245445,-500.0,0.00040821,60]
[398237549,1765444245454,-500.0,0.00040821,60]
[398237550,1765444245463,-500.0,0.00040821,60]
[398237551,1765444245472,-500.0,0.00040821,60]
[398237552,1765444245482,-500.0,0.00040821,60]
[398237553,1765444245491,-500.0,0.00040821,60]
[398237554,1765444245500,-500.0,0.00040821,60]
[398237555,1765444245509,-500.0,0.00040821,60]
[398237556,1765444245518,-500.0,0.00040821,60]
[398237557,1765444245527,-500.0,0.00040821,60]
[398237558,1765444245537,-500.0,0.00040821,60]
[398237559,1765444245553,-500.0,0.00040821,60]
[398237560,1765444245571,-500.0,0.00040821,60]
[398237561,1765444245579,-500.0,0.00040821,60]
[398237562,1765444245588,-500.0,0.00040821,60]
[398237563,1765444245598,-500.0,0.00040821,60]
[398237564,1765444245608,-500.0,0.00040821,60]
[398237565,1765444245617,-500.0,0.00040821,60]
[398237566,1765444245626,-500.0,0.00040821,60]
[398237567,1765444245635,-500.0,0.00040821,60]
[398237568,1765444245644,-519.75533213,0.00040821,60]
[398237569,1765444245654,-500.0,0.00040821,60]
[398237570,1765444245666,-500.0,0.00040821,60]
[398237571,1765444245677,-247.86442894,0.00040821,60]
[398237572,1765444245688,-599.71347649,0.00040821,60]
[398237574,1765444245700,-500.0,0.00040821,60]
[398237576,1765444245712,-500.0,0.00040821,60]
[398237578,1765444245723,-500.0,0.00040821,60]
[398237579,1765444245733,-500.0,0.00040821,60]
[398237580,1765444245743,-500.0,0.00040821,60]
[398237581,1765444245753,-500.0,0.00040821,60]
[398237582,1765444245764,-500.0,0.00040821,60]
[398237583,1765444245774,-500.0,0.00040821,60]
[398237584,1765444245786,-529.14588832,0.00040821,60]
[398237585,1765444245796,-649.88,0.00040821,60]
[398237586,1765444245808,-649.88,0.00040821,60]
[398237587,1765444245819,-649.88,0.00040821,60]
[398237588,1765444245830,-500.0,0.00040821,60]
[398237589,1765444245841,-500.0,0.00040821,60]
[398237590,1765444245852,-649.88,0.00040821,60]
[398237591,1765444245862,-500.0,0.00040821,60]
[398237592,1765444245872,-500.0,0.00040821,60]
[398237593,1765444245883,-500.0,0.00040821,60]
[398237594,1765444245895,-649.88,0.00040821,60]
[398237595,1765444245919,-500.0,0.00040821,60]
[398237596,1765444245940,-649.88,0.00040821,60]
[398237597,1765444245962,-500.0,0.00040821,60]
[398237599,1765444245987,-500.0,0.00040821,60]
[398237601,1765444246009,-649.88,0.00040821,60]
[398237603,1765444246030,-500.0,0.00040821,60]
[398237605,1765444246053,-649.88,0.00040821,60]
[398237607,1765444246082,-500.0,0.00040821,60]
[398237609,1765444246106,-649.88,0.00040821,60]
[398237611,1765444246130,-516.83733945,0.00040821,60]
[398237614,1765444246153,-649.88,0.00040821,60]
[398237616,1765444246176,-500.0,0.00040821,60]
[398237618,1765444246199,-649.88,0.00040821,60]
[398237620,1765444246222,-500.0,0.00040821,60]
[398237622,1765444246238,-500.0,0.00040821,60]
[398237624,1765444246250,-500.0,0.00040821,60]
[398237626,1765444246261,-298.37397821,0.00040821,60]
[398237629,1765444246272,-500.0,0.00040821,60]
[398237631,1765444246283,-403.3598622,0.00040821,60]
[398237633,1765444246296,-500.0,0.00040821,60]
[398237635,1765444246307,-500.0,0.00040821,60]
[398237637,1765444246317,-500.0,0.00040821,60]
[398237638,1765444246328,-500.0,0.00040821,60]
[398237639,1765444246339,-500.0,0.00040821,60]
[398237640,1765444246349,-500.0,0.00040821,60]
[398237641,1765444246359,-500.0,0.00040821,60]
[398237642,1765444246371,-500.0,0.00040821,60]
[398237643,1765444246381,-500.0,0.00040821,60]
[398237644,1765444246392,-500.0,0.00040821,60]
[398237645,1765444246402,-501.64511858,0.00040821,60]
[398237646,1765444246414,-500.0,0.00040821,60]
[398237647,1765444246425,-500.0,0.00040821,60]
[398237648,1765444246436,-500.0,0.00040821,60]
[398237649,1765444246448,-500.0,0.00040821,60]
[398237650,1765444246459,-500.0,0.00040821,60]
[398237651,1765444246471,-500.0,0.00040821,60]
[398237652,1765444246481,-275.42127052,0.00040821,60]
[398237653,1765444246492,-500.0,0.00040821,60]
[398237654,1765444246504,-500.0,0.00040821,60]
[398237655,1765444246515,-500.0,0.00040821,60]
[398237656,1765444246526,-500.0,0.00040821,60]
[398237657,1765444246536,-500.0,0.00040821,60]
[398237658,1765444246546,-500.0,0.00040821,60]
[398237659,1765444246558,-428.79008161,0.00040821,60]
[398237660,1765444246568,-500.0,0.00040821,60]
[398237661,1765444246579,-500.0,0.00040821,60]
[398237662,1765444246591,-500.0,0.00040821,60]
[398237663,1765444246604,-500.0,0.00040821,60]
[398237664,1765444246616,-500.0,0.00040821,60]
[398237665,1765444246626,-500.0,0.00040821,60]
[398237666,1765444246636,-500.0,0.00040821,60]
[398237667,1765444246646,-500.0,0.00040821,60]
[398237668,1765444246656,-500.0,0.00040821,60]
[398237669,1765444246666,-500.0,0.00040821,60]
[398237670,1765444246677,-500.0,0.00040821,60]
[398237671,1765444246688,-500.0,0.00040821,60]
[398237672,1765444246700,-500.0,0.00040821,60]
[398237673,1765444246711,-500.0,0.00040821,60]
[398237674,1765444246723,-500.0,0.00040821,60]
[398237675,1765444246734,-500.0,0.00040821,60]
[398237676,1765444246744,-500.0,0.00040821,60]
[398237677,1765444246754,-500.0,0.00040821,60]
[398237678,1765444246764,-500.0,0.00040821,60]
[398237679,1765444246774,-500.0,0.00040821,60]
[398237680,1765444246784,-636.4065297,0.00040821,60]